bitfinex-derivatives/quotes_SOLF0:USTF0_20250830
["timestamp","ask_amount","ask_price","bid_price","bid_amount"]
[1756544690646,126.0,202.97,202.83,7.63]
[1756544690849,4.67,202.95,202.83,7.63]
[1756544691349,0.03256543,202.91,202.83,7.63]
[1756544696251,0.03256543,202.91,202.85,7.63]
[1756544696444,0.03256543,202.91,202.84,4.60282065]
[1756544696445,0.03256543,202.91,202.88,7.63]
[1756544696655,335.61,203.03,202.88,7.63]
[1756544698048,335.61,203.03,202.93,0.03126826]
[1756544698446,4.7,203.01,202.93,0.03126826]
[1756544698646,4.60282065,202.99,202.93,0.03126826]
[1756544699152,4.7,202.98,202.93,0.03126826]
[1756544699352,4.7,202.96,202.93,0.03126826]
[1756544699746,126.0,202.97,202.93,0.03126826]
[1756544700248,4.7,202.96,202.93,0.03126826]
[1756544700449,126.0,202.97,202.93,0.03126826]
[1756544701258,4.7,202.96,202.93,0.03126826]
[1756544701452,126.0,202.97,202.93,0.03126826]
[1756544701853,4.7,202.96,202.93,0.03126826]
[1756544702354,126.0,202.97,202.93,0.03126826]
[1756544702550,330.94,203.03,202.93,0.03126826]
[1756544702756,4.7,202.99,202.93,0.03126826]
[1756544703348,130.7,202.98,202.93,7.66126826]
[1756544703551,4.7,202.97,202.93,7.66126826]
[1756544703859,126.0,202.98,202.93,7.66126826]
[1756544704260,4.7,202.97,202.93,7.66126826]
[1756544704654,126.0,202.98,202.93,0.03126826]
[1756544704849,4.7,203.01,202.93,0.03126826]
[1756544705051,330.94,203.03,202.94,7.63]
[1756544705359,456.92,203.03,202.94,7.63]
[1756544705550,4.7,203.05,202.94,7.63]
[1756544705750,45.84,203.06,202.96,7.63]
[1756544706255,45.84,203.06,202.99,0.03771093]
[1756544706461,45.84,203.06,202.99,7.66771093]
[1756544706856,50.54,203.06,202.99,0.03771093]
[1756544707261,3.57665928,203.05,202.99,0.03771093]
[1756544707456,50.54,203.06,202.99,0.03771093]
[1756544707457,3.57942188,203.04,202.99,0.03771093]
[1756544707761,4.71,203.05,202.99,0.03771093]
[1756544707961,3.5792719,203.04,202.99,0.03771093]
[1756544708162,4.71,203.05,202.99,0.03771093]
[1756544708462,4.71,203.03,202.99,0.03771093]
[1756544708657,4.71,203.05,202.99,0.03771093]
[1756544708962,3.58302621,203.04,202.99,0.03771093]
[1756544709163,4.71,203.02,202.99,0.03771093]
[1756544709667,4.60282065,203.0,202.83,7.6]
[1756544709857,4.08554999,203.01,202.83,7.6]
[1756544709858,4.67,202.95,202.83,7.6]
[1756544710054,3.58554999,202.94,202.83,7.6]
[1756544710259,3.58554999,202.94,202.84,4.4365]
[1756544710562,95.74,202.97,202.86,7.6]
[1756544710752,3.58955088,202.96,202.86,7.6]
[1756544710952,0.03486555,202.91,202.86,7.6]
[1756544711156,0.03486555,202.91,202.85,4.60282065]
[1756544711361,4.7,203.04,202.89,7.6]
[1756544711562,3.54698062,203.03,202.94,7.6]
[1756544711757,3.54698062,203.02,202.94,7.6]
[1756544712064,40.7,203.08,202.94,7.6]
[1756544712263,3.54763567,203.07,202.94,7.6]
[1756544712559,40.7,203.08,202.94,7.6]
[1756544712560,4.7,203.08,202.99,0.03777996]
[1756544713966,4.7,203.08,203.0,7.6]
[1756544716863,335.86,203.13,203.0,7.6]
[1756544717059,461.78,203.13,203.02,4.60282065]
[1756544717261,461.78,203.13,203.03,7.6]
[1756544717569,461.78,203.13,203.05,0.03725971]
[1756544720768,4.66,203.17,203.06,7.6]
[1756544720967,53.0,203.16,203.06,7.6]
[1756544721568,53.0,203.16,203.09,0.03538986]
[1756544722374,53.0,203.16,203.09,7.63538986]
[1756544723067,4.66,203.22,203.09,7.63538986]
[1756544723269,4.66,203.22,203.12,7.6]
[1756544723664,130.48282065,203.24,203.08,12.20282065]
[1756544723871,4.66,203.2,203.15,0.03652036]
[1756544724961,4.60282065,203.21,203.15,0.03652036]
[1756544725171,4.66,203.2,203.15,0.03652036]
[1756544725363,4.60282065,203.21,203.15,0.03652036]
[1756544725969,4.66,203.2,203.15,0.03652036]
[1756544726363,4.66,203.23,203.15,0.03652036]
[1756544727970,130.5,203.23,203.15,0.03652036]
[1756544729272,4.66,203.23,203.15,0.03652036]
[1756544729772,125.84,203.27,203.16,7.6]
[1756544729966,4.66,203.26,203.16,7.6]
[1756544730469,4.66,203.26,203.19,0.03754329]
[1756544741080,4.68,203.23,203.19,0.03754329]
[1756544741280,4.60282065,203.24,203.19,0.03754329]
[1756544741787,4.68,203.23,203.19,0.03754329]
[1756544742586,4.60282065,203.24,203.19,0.03754329]
[1756544743082,4.68,203.23,203.19,0.03754329]
[1756544743481,4.60282065,203.24,203.19,0.03754329]
[1756544743681,4.68,203.23,203.19,0.03754329]
[1756544744481,4.68,203.2,203.19,0.03754329]
[1756544747377,7.55963715,203.2,203.19,0.03754329]
[1756544752484,4.68,203.19,203.09,7.72]
[1756544752684,2.87963715,203.15,203.09,7.72]
[1756544753687,4.68,203.16,203.09,7.72]
[1756544753892,0.03712974,203.14,203.06,7.72]
[1756544759597,2.91676689,203.14,203.06,7.72]
[1756544759988,7.59676689,203.14,203.06,7.72]
[1756544761888,4.68,203.13,203.06,7.72]
[1756544763795,0.03712974,203.14,203.06,7.72]
[1756544764489,7.59676689,203.14,203.06,7.72]
[1756544766901,2.87963715,203.11,203.06,7.72]
[1756544767201,4.7,203.1,203.06,7.72]
[1756544768205,4.7,203.1,203.01,2.87963715]
[1756544768396,2.87963715,203.12,203.02,7.76]
[1756544768998,0.03575107,203.09,203.05,7.76]
[1756544769500,2.87963715,203.15,203.05,7.76]
[1756544769700,0.03471371,203.09,203.05,7.76]
[1756544769995,0.03471371,203.09,203.04,7.76]
[1756544774009,0.03471371,203.09,203.03,2.87963715]
[1756544774211,0.03471371,203.09,203.04,7.76]
[1756544775012,0.03471371,203.09,203.03,2.87963715]
[1756544775211,0.03471371,203.09,203.04,7.76]
[1756544776110,0.03471371,203.09,203.06,2.87963715]
[1756544776316,0.03471371,203.09,203.07,7.76]
[1756544777609,0.03471371,203.09,203.06,2.87963715]
[1756544777811,0.03471371,203.09,203.07,7.76]
[1756544781116,0.03471371,203.09,203.04,7.76]
[1756544781317,0.03471371,203.09,203.03,2.87963715]
[1756544781720,0.03471371,203.09,203.04,7.76]
[1756544781919,0.03471371,203.09,203.03,2.87963715]
[1756544783120,0.03471371,203.09,203.04,7.76]
[1756544783919,0.03471371,203.09,203.07,7.76]
[1756544786321,0.03471371,203.09,203.06,2.87963715]
[1756544786521,0.03471371,203.09,203.07,7.76]
[1756544786819,0.03471371,203.09,203.06,2.87963715]
[1756544787625,0.03471371,203.09,203.07,7.76]
[1756544787921,0.03471371,203.09,203.06,2.87963715]
[1756544788317,0.03471371,203.09,203.07,7.76]
[1756544788523,0.03471371,203.09,203.06,2.87963715]
[1756544789124,0.03471371,203.09,203.03,7.76]
[1756544789819,0.03471371,203.09,203.05,7.76]
[1756544790822,0.03471371,203.09,203.04,0.03259343]
[1756544791122,0.03471371,203.09,203.05,7.76]
[1756544791321,0.03471371,203.09,203.08,7.76]
[1756544792424,0.03471371,203.09,203.04,0.03259343]
[1756544792727,0.03471371,203.09,203.05,7.76]
[1756544793023,0.03471371,203.09,203.04,0.03259343]
[1756544793219,0.03471371,203.09,203.05,7.76]
[1756544793426,2.87963715,203.06,202.97,7.76]
[1756544793634,4.7,203.01,202.92,7.76]
[1756544793928,4.7,202.98,202.92,7.76]
[1756544794827,4.73313522,202.97,202.92,7.76]
[1756544796330,4.7,202.96,202.92,7.76]
[1756544797933,0.03313522,202.97,202.89,7.78]
[1756544798526,0.03313522,202.97,202.88,7.31523715]
[1756544798527,0.03313522,202.97,202.92,7.78]
[1756544798932,4.7,203.03,202.92,7.78]
[1756544799339,0.03494928,202.97,202.92,7.78]
[1756544799536,0.03494928,202.97,202.94,2.87963715]
[1756544799735,0.03494928,202.97,202.95,7.78]
[1756544799932,0.03494928,202.97,202.94,2.87963715]
[1756544800233,0.03494928,202.97,202.95,7.78]
[1756544802441,0.03494928,202.97,202.94,7.31393715]
[1756544802642,0.03494928,202.97,202.95,7.78]
[1756544802836,0.03494928,202.97,202.96,2.87963715]
[1756544803042,0.03494928,202.97,202.96,10.65963715]
[1756544809141,4.7,203.06,202.97,7.78]
[1756544810945,8.15737032,203.19,202.9,8.20906267]
[1756544810946,4.74,203.11,203.0,7.78]
[1756544812848,4.74,203.09,202.99,2.87963715]
[1756544813846,44.38,203.15,202.97,7.78]
[1756544813847,2.87963715,203.07,202.97,7.78]
[1756544814043,4.74,203.06,202.97,7.78]
[1756544820852,4.74,203.11,203.02,7.78]
[1756544821054,4.74,203.2,203.08,7.78]
[1756544821253,2.87963715,203.19,203.08,7.78]
[1756544821452,4.74,203.18,203.08,7.78]
[1756544821855,4.74,203.23,203.14,7.78]
[1756544822454,331.04,203.24,203.17,7.78]
[1756544823553,7.61963715,203.27,203.17,7.78]
[1756544826258,125.28,203.29,203.12,2.87963715]
[1756544826259,4.74,203.23,203.12,2.87963715]
[1756544826457,4.74,203.23,203.12,10.65963715]
[1756544828660,4.74,203.23,203.12,7.78]
[1756544828851,4.73,203.2,203.12,7.78]
[1756544831059,4.73,203.2,203.08,7.24]
[1756544832661,2.87963715,203.18,203.08,7.24]
[1756544833362,4.73,203.14,203.08,7.24]
[1756544833560,4.73,203.11,203.01,2.87963715]
[1756544833758,13.14,203.13,203.0,7.24]
[1756544833759,4.73,203.08,203.0,7.24]
[1756544835364,4.73,203.05,202.95,7.24]
[1756544835764,17.39,203.05,202.95,7.24]
[1756544836058,4.73,203.03,202.95,7.24]
[1756544836457,4.73,203.03,202.89,7.24]
[1756544836861,4.61365108,203.04,202.89,7.24]
[1756544837062,4.73,203.03,202.89,7.24]
[1756544838165,4.73,203.09,202.94,7.24]
[1756544838362,4.73,203.09,202.96,4.61365108]
[1756544838564,4.73,203.09,202.97,7.24]
[1756544842060,4.61365108,203.13,202.99,4.61365108]
[1756544842264,4.73,203.13,203.0,7.24]
[1756544844877,19.98,203.14,203.0,7.24]
[1756544845078,4.73,203.12,203.0,7.24]
[1756544845978,4.61365108,203.13,203.0,7.24]
[1756544846674,4.73,203.12,203.0,7.24]
[1756544846879,4.61365108,203.1,202.94,7.24]
[1756544847275,4.73,203.09,202.94,7.24]
[1756544847774,4.73,203.06,202.94,7.24]
[1756544851981,4.73,203.03,202.94,7.24]
[1756544852885,4.73,203.04,202.94,7.24]
[1756544853081,17.97365108,203.05,202.94,7.24]
[1756544853288,4.73,203.01,202.94,7.24]
[1756544853482,4.61365108,203.06,202.94,7.24]
[1756544853684,4.73,203.05,202.94,7.24]
[1756544857077,18.61365108,203.09,202.94,7.24]
[1756544857277,2.88271849,203.07,202.96,2.88271849]
[1756544857478,4.74,203.06,202.97,7.97]
[1756544862887,2.88271849,203.04,202.97,7.97]
[1756544868203,4.74,203.06,202.97,7.97]
[1756544868395,2.88271849,203.07,202.97,7.97]
[1756544869399,2.88271849,203.09,202.99,2.88271849]
[1756544869604,2.88271849,203.12,203.0,7.97]
[1756544869803,2.88271849,203.12,203.02,2.88271849]
[1756544870003,2.88271849,203.12,203.03,7.97]
[1756544871503,4.74,203.11,203.03,7.97]
[1756544880610,2.88271849,203.09,203.03,7.97]
[1756544882212,4.74,203.11,203.03,7.97]
[1756544884113,4.74,203.08,203.03,7.97]
[1756544884311,4.74,203.08,202.98,7.97]
[1756544885114,4.74,203.08,203.0,7.97]
[1756544892120,2.88271849,203.07,203.0,7.97]
[1756544894922,2.88271849,203.07,202.94,5.32942552]
[1756544895122,4.72,203.0,202.97,7.5]
[1756544895328,4.72,203.0,202.9,7.5]
[1756544895826,7.60271849,203.0,202.9,7.5]
[1756544896229,2.88271849,202.97,202.9,7.5]
[1756544902631,2.88271849,202.99,202.9,10.38271849]
[1756544902831,2.88271849,203.04,202.94,7.5]
[1756544910232,2.88271849,203.1,202.99,2.88271849]
[1756544910435,4.74,203.06,202.92,7.5]
[1756544910637,2.88271849,203.04,202.94,7.5]
[1756544911030,2.88271849,203.01,202.94,7.5]
[1756544911238,2.88271849,203.02,202.94,7.5]
[1756544916637,4.74,203.01,202.87,5.32942552]
[1756544916938,7.62271849,202.99,202.89,7.5]
[1756544921234,2.88271849,202.99,202.89,7.5]
[1756544921440,2.88271849,202.96,202.89,7.5]
[1756544921640,2.88271849,202.93,202.85,7.53]
[1756544922138,4.74,202.92,202.85,7.53]
[1756544925744,4.74,202.92,202.77,5.32942552]
[1756544925745,4.74,202.89,202.81,7.53]
[1756544925940,2.88271849,202.87,202.81,7.53]
[1756544926346,4.74,202.86,202.76,7.53]
[1756544929640,2.88271849,202.87,202.76,7.53]
[1756544929836,2.88271849,202.87,202.75,4.4385]
[1756544929837,2.88271849,202.87,202.78,7.53]
[1756544931047,7.62271849,202.87,202.78,7.53]
[1756544931843,2.88271849,202.87,202.78,7.53]
[1756544932846,27.00271849,202.9,202.78,7.53]
[1756544933846,4.74,202.91,202.81,7.53]
[1756544940647,4.74,202.99,202.83,2.88271849]
[1756544940847,2.88271849,202.98,202.88,2.88271849]
[1756544941053,4.74,202.97,202.88,7.53]
[1756544941255,4.74,202.94,202.88,7.53]
[1756544941549,4.74,202.94,202.84,7.53]
[1756544943754,4.74,202.91,202.84,7.53]
[1756544944049,4.74,202.91,202.83,7.53]
[1756544948453,4.74,202.95,202.85,2.88271849]
[1756544948652,2.88271849,202.98,202.89,7.82]
[1756544949558,4.74,202.97,202.89,7.82]
[1756544949750,4.74,202.94,202.83,2.88271849]
[1756544949954,4.74,202.94,202.84,7.82]
[1756544952764,2.88271849,202.86,202.77,7.82]
[1756544953165,4.74,202.89,202.77,7.82]
[1756544953362,2.88271849,202.87,202.78,7.82]
[1756544954367,7.62271849,202.89,202.78,7.82]
[1756544954565,2.88271849,202.86,202.78,7.82]
[1756544955064,4.74,202.85,202.73,2.88271849]
[1756544955264,2.88271849,202.83,202.74,7.82]
[1756544955467,2.88271849,202.84,202.74,7.82]
[1756544956967,4.74,202.85,202.76,2.88271849]
[1756544957172,4.74,202.85,202.77,7.82]
[1756544958068,2.88271849,202.84,202.77,7.82]
[1756544958971,2.88271849,202.84,202.71,4.4393]
[1756544959173,4.75,202.83,202.73,2.88271849]
[1756544959373,4.75,202.83,202.74,7.82]
[1756544966280,2.88271849,202.84,202.74,7.82]
[1756544966480,4.75,202.83,202.74,7.82]
[1756544966679,4.75,202.8,202.7,2.88271849]
[1756544966979,4.75,202.8,202.7,10.70271849]
[1756544969281,4.75,202.8,202.7,7.82]
[1756544970080,7.63271849,202.84,202.73,7.82]
[1756544976887,4.75,202.84,202.74,7.82]
[1756544977187,7.63271849,202.84,202.74,7.82]
[1756544983490,4.75,202.83,202.74,7.82]
[1756544986789,7.63271849,202.87,202.77,7.97]
[1756544989598,4.75,202.87,202.77,7.97]
[1756544989794,7.63271849,202.87,202.77,7.97]
[1756544990195,4.75,202.86,202.77,7.97]
[1756544991899,4.75,202.89,202.79,7.97]
[1756544992601,4.75,202.89,202.82,7.97]
[1756544993492,2.88271849,202.88,202.82,7.97]
[1756544994794,4.75,202.87,202.82,7.97]
[1756544994993,2.88271849,202.88,202.82,7.97]
[1756544995398,7.63271849,202.88,202.82,7.97]
[1756544996002,4.75,202.87,202.79,7.97]
[1756545000405,2.88271849,202.85,202.79,7.97]
[1756545000607,4.75,202.84,202.79,7.97]
[1756545000805,2.88271849,202.85,202.79,7.97]
[1756545001008,7.63271849,202.85,202.79,7.97]
[1756545001607,7.63271849,202.85,202.74,7.97]
[1756545002004,2.88271849,202.88,202.76,2.88271849]
[1756545002200,2.88271849,202.88,202.77,7.97]
[1756545002201,7.63271849,202.88,202.77,7.97]
[1756545003413,7.63271849,202.88,202.78,7.97]
[1756545003807,7.63271849,202.88,202.79,7.97]
[1756545004009,4.75,202.88,202.79,7.97]
[1756545009313,4.75,202.85,202.79,7.97]
[1756545009612,4.75,202.85,202.75,7.51]
[1756545014318,4.75,202.85,202.76,4.4384]
[1756545014519,2.88271849,202.88,202.77,7.51]
[1756545015021,4.75,202.87,202.77,7.51]
[1756545015217,2.88271849,202.85,202.77,7.51]
[1756545015820,7.63271849,202.85,202.77,7.51]
[1756545016024,4.75,202.85,202.77,7.51]
[1756545016226,2.88271849,202.84,202.77,7.51]
[1756545018129,4.75,202.83,202.77,7.51]
[1756545019130,7.63271849,202.88,202.77,7.51]
[1756545019431,4.75,202.88,202.77,7.51]
[1756545019629,7.63271849,202.88,202.77,7.51]
[1756545021229,2.88271849,202.85,202.77,7.51]
[1756545021427,4.75,202.84,202.77,7.51]
[1756545035232,0.85826325,202.87,202.78,7.51]
[1756545035233,4.75,202.87,202.78,7.51]
[1756545035841,0.85819975,202.9,202.78,7.51]
[1756545035842,5.60819975,202.9,202.78,7.51]
[1756545036037,8.49091824,202.9,202.78,7.51]
[1756545036242,8.49091824,202.9,202.77,2.88271849]
[1756545036243,2.88271849,202.93,202.8,2.88271849]
[1756545036436,7.63271849,202.93,202.83,2.88271849]
[1756545036742,7.63271849,202.93,202.84,7.51]
[1756545042046,4.75,202.93,202.84,7.51]
[1756545048145,2.88271849,202.94,202.84,7.51]
[1756545048352,2.88271849,202.88,202.79,7.44]
[1756545048552,4.74,202.87,202.79,7.44]
[1756545048753,2.88271849,202.88,202.79,7.44]
[1756545048953,4.74,202.87,202.79,7.44]
[1756545053356,2.88271849,202.88,202.79,7.44]
[1756545053558,4.74,202.87,202.79,7.44]
[1756545057763,7.62271849,202.85,202.79,7.44]
[1756545058154,4.74,202.85,202.79,7.44]
[1756545058858,2.88271849,202.88,202.79,7.44]
[1756545059058,4.74,202.87,202.79,7.44]
[1756545059761,2.88271849,202.88,202.79,7.44]
[1756545059963,4.74,202.87,202.79,7.44]
[1756545060156,2.88271849,202.88,202.79,7.44]
[1756545060357,4.74,202.84,202.79,7.44]
[1756545060557,7.62271849,202.85,202.76,7.44]
[1756545060757,4.74,202.85,202.76,7.44]
[1756545061660,4.74,202.91,202.79,7.44]
[1756545061860,4.74,202.88,202.79,7.44]
[1756545063762,7.62271849,202.86,202.79,7.44]
[1756545064461,2.88271849,202.92,202.8,7.44]
[1756545064763,4.74,202.93,202.84,7.44]
[1756545067762,4.74,202.94,202.84,7.44]
[1756545068163,4.74,202.91,202.84,7.44]
[1756545069170,4.74,202.94,202.85,7.57]
[1756545070967,123.88,202.93,202.85,7.57]
[1756545071169,4.74,202.92,202.85,7.57]
[1756545071368,7.62271849,202.92,202.85,7.57]
[1756545075774,123.88,202.93,202.85,7.57]
[1756545075971,10.17791049,202.98,202.88,7.57]
[1756545076176,4.74,202.98,202.91,7.57]
[1756545082476,123.84,202.99,202.92,7.57]
[1756545082681,4.72,203.01,202.92,7.57]
[1756545084378,4.72,203.01,202.94,7.57]
[1756545084580,124.61760757,203.02,202.94,10.45271849]
[1756545084780,3.46336273,203.01,202.94,10.45271849]
[1756545084977,3.46336273,203.0,202.94,2.88271849]
[1756545085282,3.46336273,202.99,202.95,7.57]
[1756545085484,4.72,203.04,202.95,7.57]
[1756545085678,3.46224063,203.03,202.95,7.57]
[1756545085881,0.85751247,203.06,202.95,7.57]
[1756545086182,4.72,203.08,203.0,2.88271849]
[1756545086383,3.46286005,203.07,203.01,7.57]
[1756545086682,4.72,203.08,203.01,7.57]
[1756545086882,3.45911343,203.07,203.01,7.57]
[1756545087183,4.72,203.08,203.01,7.57]
[1756545089480,0.85735403,203.09,203.01,7.57]
[1756545089682,24.66,203.09,203.01,7.57]
[1756545090474,29.38,203.09,203.01,7.57]
[1756545092386,32.26271849,203.09,203.01,7.57]
[1756545094785,7.60271849,203.09,203.01,7.57]
[1756545094986,41.31724843,203.11,203.02,7.57]
[1756545096186,0.85724843,203.11,203.02,7.57]
[1756545097787,116.06,203.12,203.02,7.57]
[1756545098182,4.73,203.11,203.02,7.57]
[1756545098389,4.73,203.09,203.02,7.57]
[1756545101595,4.73,203.06,202.94,2.88271849]
[1756545101791,4.73,203.06,202.95,7.89]
[1756545102289,2.88271849,203.04,202.95,7.89]
[1756545102495,4.73,203.02,202.95,7.89]
[1756545106502,7.61271849,203.07,202.95,7.89]
[1756545106694,36.02,203.06,202.95,7.89]
[1756545107195,7.61271849,203.07,202.95,7.89]
[1756545107397,71.4,203.06,202.95,7.89]
[1756545107794,71.4,203.06,202.97,7.89]
[1756545108397,7.61271849,203.07,202.97,7.89]
[1756545108699,123.54,203.06,202.97,7.89]
[1756545109202,123.54,203.05,202.97,7.89]
[1756545109401,7.61271849,203.07,202.97,7.89]
[1756545109604,123.54,203.05,202.97,7.89]
[1756545110200,2.88271849,202.98,202.84,5.32942552]
[1756545110398,2.88271849,202.87,202.82,7.89]
[1756545110702,2.88271849,202.84,202.74,7.89]
[1756545113299,331.06,202.95,202.78,7.89]
[1756545113300,2.88271849,202.86,202.78,7.89]
[1756545114004,4.73,202.85,202.78,7.89]
[1756545116299,38.44,202.84,202.78,7.89]
[1756545116606,7.61271849,202.83,202.73,7.89]
[1756545117205,50.9,202.82,202.73,7.89]
[1756545118405,7.61271849,202.83,202.73,7.89]
[1756545118704,55.84,202.82,202.73,7.89]
[1756545120203,7.61271849,202.83,202.73,7.89]
[1756545120405,60.54,202.81,202.73,7.89]
[1756545120799,2.88271849,202.83,202.73,7.89]
[1756545121201,13.9,202.82,202.73,7.89]
[1756545121795,19.1,202.82,202.77,7.89]
[1756545122001,19.1,202.82,202.76,4.4383]
[1756545122200,19.1,202.82,202.76,12.3283]
[1756545122998,2.88271849,202.83,202.76,12.3283]
[1756545123199,54.4,202.82,202.76,12.3283]
[1756545123404,87.78,202.82,202.76,12.3283]
[1756545124005,2.88271849,202.83,202.76,12.3283]
[1756545124203,119.42,202.82,202.76,12.3283]
[1756545124404,119.42,202.82,202.76,7.89]
[1756545125405,7.61271849,202.83,202.76,7.89]
[1756545125794,35.68,202.82,202.76,7.89]
[1756545126605,69.58,202.81,202.76,7.89]
[1756545126801,69.58,202.81,202.75,4.4385]
[1756545127007,69.58,202.81,202.75,12.3285]
[1756545129104,7.61271849,202.83,202.75,12.3285]
[1756545129310,79.86,202.82,202.75,12.3285]
[1756545129709,103.72,202.81,202.75,12.3285]
[1756545130811,103.72,202.81,202.75,7.89]
[1756545131305,108.46,202.81,202.75,7.89]
[1756545132110,108.46,202.81,202.72,4.4391]
[1756545132111,103.72,202.81,202.69,7.37]
[1756545132310,4.74,202.79,202.69,10.25271849]
[1756545133501,2.88271849,202.8,202.69,10.25271849]
[1756545133701,4.74,202.79,202.69,10.25271849]
[1756545133909,7.48,202.78,202.69,10.25271849]
[1756545134507,4.74,202.77,202.64,0.85844321]
[1756545134709,4.74,202.73,202.63,7.37]
[1756545134908,37.76,202.72,202.63,7.37]
[1756545135609,73.5,202.71,202.63,7.37]
[1756545136011,4.74,202.7,202.63,7.37]
[1756545137314,4.74,202.69,202.58,7.37]
[1756545137515,37.28,202.68,202.58,7.37]
[1756545137711,4.74,202.69,202.59,4.4421]
[1756545138013,4.74,202.69,202.6,7.37]
[1756545138315,37.92,202.68,202.6,7.37]
[1756545138514,73.28,202.68,202.6,7.37]
[1756545138814,106.74,202.68,202.6,7.37]
[1756545139010,4.74,202.69,202.61,4.4416]
[1756545139212,128.64,202.69,202.62,7.37]
[1756545139612,4.74,202.69,202.62,7.37]
[1756545139814,123.86,202.68,202.62,7.37]
[1756545140513,334.24271849,202.8,202.58,7.37]
[1756545140814,334.24271849,202.8,202.6,7.37]
[1756545140815,7.64271849,202.7,202.6,7.37]
[1756545141014,47.7,202.69,202.6,7.37]
[1756545141508,7.64271849,202.7,202.6,7.37]
[1756545141712,36.42,202.69,202.6,7.37]
[1756545142816,4.76,202.68,202.6,7.37]
[1756545143012,75.22,202.68,202.6,7.37]
[1756545143317,102.74,202.67,202.6,7.37]
[1756545143518,123.72,202.67,202.6,7.37]
[1756545144214,4.76,202.68,202.6,7.37]
[1756545144415,37.76,202.68,202.62,10.25271849]
[1756545145115,4.76,202.68,202.62,10.25271849]
[1756545145717,4.76,202.68,202.62,7.37]
[1756545145918,74.44,202.68,202.62,7.37]
[1756545146115,4.76,202.68,202.62,7.37]
[1756545146318,106.7,202.68,202.62,7.37]
[1756545147115,4.76,202.68,202.62,7.37]
[1756545147321,40.5,202.68,202.62,7.37]
[1756545147519,4.76,202.68,202.62,7.37]
[1756545147719,40.48,202.68,202.62,7.37]
[1756545149417,4.76,202.68,202.62,7.37]
[1756545149617,4.76,202.72,202.63,2.88271849]
[1756545149818,101.9,202.71,202.63,2.88271849]
[1756545150523,4.76,202.7,202.62,7.37]
[1756545151221,123.72,202.69,202.62,7.37]
[1756545152420,4.76,202.7,202.63,2.88271849]
[1756545152615,4.76,202.7,202.63,10.25271849]
[1756545157322,2.88271849,202.8,202.53,0.85886694]
[1756545157323,4.74,202.79,202.7,7.65]
[1756545158528,36.62,202.78,202.7,7.65]
[1756545158830,81.08,202.78,202.7,7.65]
[1756545160630,4.74,202.79,202.7,7.65]
[1756545160828,113.3,202.78,202.7,7.65]
[1756545161029,4.74,202.77,202.7,7.65]
[1756545162722,40.76,202.77,202.7,7.65]
[1756545164027,74.98,202.77,202.7,7.65]
[1756545164229,74.98,202.77,202.71,2.88271849]
[1756545165537,74.98,202.77,202.7,7.65]
[1756545166138,4.74,202.77,202.7,7.65]